fUSD/lending_fUSD_20260121
["ID","MTS","AMOUNT","RATE_DAILY","PERIOD"]
[402950238,1769013038772,-2208.59556877,0.00016072,2]
[402950239,1769013038783,-113847.92685443,0.00016072,2]
[402950240,1769013038793,-2048.26176511,0.00016072,2]
[402950241,1769013038803,-507.32904147,0.00016072,2]
[402950242,1769013038812,-4321.77131334,0.00016072,2]
[402950243,1769013038822,-1112.7383542,0.00016082,2]
[402950244,1769013038831,-500.0,0.00016082,2]
[402950245,1769013038842,-500.0,0.00016082,2]
[402950246,1769013038851,-500.0,0.00016082,2]
[402950247,1769013038861,-500.0,0.00016082,2]
[402950248,1769013038870,-150.00695087,0.00016181,2]
[402950249,1769013038880,-5005.63967973,0.000162,5]
[402950250,1769013038889,-166.66,0.00016322,2]
[402950251,1769013038900,-354.51744394,0.00016388,2]
[402950252,1769013038909,-158.86220082,0.00016415,2]
[402950253,1769013038919,-3674.35918417,0.00016415,2]
[402950254,1769013038928,-397.76964095,0.00016416,2]
[402950255,1769013038938,-2405.05,0.00016419,2]
[402950256,1769013038947,-151.0,0.00016438,2]
[402950257,1769013038957,-175.11,0.0001644,2]
[402950258,1769013038966,-1000.0,0.00016469,2]
[402950259,1769013038975,-500.0,0.00016474,2]
[402950260,1769013038985,-500.0,0.00016474,2]
[402950261,1769013038994,-500.0,0.00016474,2]
[402950262,1769013039004,-500.0,0.00016474,2]
[402950263,1769013039014,-432.58131439,0.00016474,2]
[402950264,1769013039024,-500.0,0.00016474,2]
[402950265,1769013039037,-1000.0,0.00016475,2]
[402950266,1769013039047,-1000.0,0.00016476,2]
[402950267,1769013039056,-5243.59,0.00016476,2]
[402950268,1769013039066,-9999.99,0.00016476,2]
[402950269,1769013039075,-999.99,0.00016476,2]
[402950270,1769013039085,-150.99,0.00016476,2]
[402950271,1769013039095,-801.83018575,0.00016477,2]
[402950272,1769013039104,-29999.99,0.00016477,2]
[402950273,1769013039115,-2777.9,0.00016477,2]
[402950274,1769013039124,-500.0,0.00016477,2]
[402950275,1769013039134,-200.0,0.00016477,2]
[402950276,1769013039144,-42511.94761454,0.00016485,2]
[402950277,1769013039154,-1113.73,0.00016486,2]
[402950278,1769013039163,-9345.92,0.00016486,2]
[402950279,1769013039172,-150.99,0.00016486,2]
[402950280,1769013039182,-150.0,0.00016486,2]
[402950281,1769013039191,-370.0,0.00016486,2]
[402950282,1769013039201,-1000000.0,0.00016487,2]
[402950283,1769013039211,-1000.0,0.00016488,2]
[402950284,1769013039498,-170.21,0.00016515,2]
[402950285,1769013039508,-1215.07,0.00016516,2]
[402950286,1769013039517,-1000.0,0.00016519,2]
[402950287,1769013039527,-159.63,0.0001652,2]
[402950288,1769013039536,-1000.0,0.00016521,2]
[402950289,1769013039547,-1000.0,0.00016531,2]
[402950290,1769013039556,-1000.0,0.00016533,2]
[402950291,1769013039565,-1000.0,0.00016535,2]
[402950292,1769013039574,-1000.0,0.00016537,2]
[402950293,1769013039585,-1000.0,0.0001654,2]
[402950294,1769013039594,-1000.0,0.0001654,2]
[402950295,1769013039602,-500.0,0.0001654,2]
[402950296,1769013039612,-1000.0,0.00016542,2]
[402950297,1769013039621,-1008.0,0.00016547,2]
[402950298,1769013039630,-1000.0,0.00016555,2]
[402950299,1769013039639,-1215.07,0.00016559,2]
[402950300,1769013039648,-1000.0,0.00016561,2]
[402950301,1769013039657,-1000.0,0.00016561,2]
[402950302,1769013039666,-1000.0,0.00016562,2]
[402950303,1769013039675,-1000.0,0.00016564,2]
[402950304,1769013039684,-1000.0,0.00016574,2]
[402950305,1769013039693,-399.11036065,0.00016577,2]
[402950306,1769013039703,-163.0,0.0001658,2]
[402950307,1769013039712,-3674.35918412,0.0001658,2]
[402950308,1769013039721,-1000.0,0.00016583,2]
[402950309,1769013039730,-1000.0,0.00016587,2]
[402950310,1769013039739,-1376.0,0.00016588,2]
[402950311,1769013039748,-1000.0,0.00016588,2]
[402950312,1769013039757,-624.9530238,0.00016589,2]
[402950313,1769013039766,-150.0,0.00016597,2]
[402950314,1769013039775,-1000.0,0.00016601,2]
[402950315,1769013039783,-1000.0,0.00016602,2]
[402950316,1769013039792,-1215.07,0.00016603,2]
[402950317,1769013039801,-354.5174439,0.00016604,2]
[402950318,1769013039810,-1000.0,0.00016606,2]
[402950319,1769013039819,-1117.0,0.00016613,2]
[402950320,1769013039828,-1000.0,0.00016617,2]
[402950321,1769013039837,-1086.0,0.00016621,2]
[402950322,1769013039846,-1000.0,0.00016625,2]
[402950323,1769013039855,-397.76964095,0.00016628,2]
[402950324,1769013039864,-1000.0,0.00016632,2]
[402950325,1769013039874,-150.0,0.00016633,2]
[402950326,1769013039883,-1000.0,0.00016638,2]
[402950327,1769013039892,-150.0,0.00016638,2]
[402950328,1769013039902,-1215.07,0.00016646,2]
[402950329,1769013039911,-738.0,0.00016646,2]
[402950330,1769013039920,-225.0,0.00016654,2]
[402950331,1769013039930,-1000.0,0.00016656,2]
[402950332,1769013039939,-1000.0,0.00016676,2]
[402950333,1769013039948,-1000.0,0.00016678,2]
[402950334,1769013039957,-1229.0,0.00016679,2]
[402950335,1769013039966,-1000.0,0.00016685,2]
[402950336,1769013039976,-1000.0,0.00016686,2]
[402950337,1769013039985,-217.0,0.00016687,2]
[402950338,1769013039994,-463.0,0.00016687,2]
[402950339,1769013040004,-1000.0,0.00016689,2]
[402950340,1769013040013,-1215.07,0.00016689,2]
[402950341,1769013040022,-150.0,0.00016697,2]
[402950342,1769013040032,-800.0,0.000167,2]
[402950343,1769013040041,-1000.0,0.00016709,2]
[402950344,1769013040050,-1203.0,0.00016712,2]
[402950345,1769013040060,-1000.0,0.00016712,2]
[402950346,1769013040070,-1000.0,0.00016719,2]
[402950347,1769013040081,-1733.0,0.00016721,2]
[402950348,1769013040090,-1000.0,0.00016726,2]
[402950349,1769013040099,-151.0,0.00016728,2]
[402950350,1769013040108,-1215.07,0.00016733,2]
[402950351,1769013040117,-151.0,0.00016737,2]
[402950352,1769013040126,-151.0,0.00016739,2]
[402950353,1769013040136,-127009.25320044,0.0001674,2]
[402950354,1769013040145,-153.55,0.00016741,2]
[402950355,1769013040154,-581.0,0.00016745,2]
[402950356,1769013040163,-3674.35918412,0.00016745,2]
[402950357,1769013040172,-221.23640684,0.00016751,2]
[402950358,1769013040183,-1042.0,0.00016754,2]
[402950359,1769013040193,-1215.07,0.00016776,2]
[402950360,1769013040203,-1203.0,0.00016787,2]
[402950361,1769013040213,-150.0,0.00016791,2]
[402950362,1769013040223,-150.0,0.00016797,2]
[402950363,1769013040233,-398.16215466,0.00016814,2]
[402950365,1769013040242,-150.0,0.00016814,2]
[402950366,1769013040251,-1215.07,0.0001682,2]
[402950367,1769013040261,-150.0,0.00016821,2]
[402950368,1769013040270,-397.76964095,0.0001684,2]
[402950369,1769013040279,-1215.07,0.00016863,2]
[402950370,1769013040288,-1215.07,0.00016907,2]
[402950371,1769013040298,-158.86220082,0.00016908,2]
[402950372,1769013040308,-3674.35918412,0.0001691,2]
[402950373,1769013040318,-1215.07,0.0001695,2]
[402950374,1769013040328,-181.0,0.00016992,2]
[402950375,1769013040337,-1215.07,0.00016994,2]
[402950376,1769013040347,-250.0,0.00017,2]
[402950377,1769013040357,-181.0,0.00017013,2]
[402950378,1769013040367,-1215.07,0.00017037,2]
[402950379,1769013040376,-182.47,0.00017038,2]
[402950380,1769013040386,-397.76964095,0.00017052,2]
[402950381,1769013040395,-150.0,0.00017064,2]
[402950382,1769013040404,-181.0,0.00017065,2]
[402950383,1769013040414,-1291.86,0.00017069,2]
[402950384,1769013040423,-1215.07,0.0001708,2]
[402950385,1769013040433,-170.21,0.00017112,2]
[402950386,1769013040442,-1215.07,0.00017124,2]
[402950387,1769013040451,-181.0,0.0001715,2]
[402950388,1769013040460,-1215.07,0.00017167,2]
[402950389,1769013040470,-500.0,0.00017173,2]
[402950390,1769013040479,-541.31841079,0.00017173,2]
[402950391,1769013040489,-543.26843644,0.00017173,2]
[402950392,1769013040498,-500.0,0.00017173,2]
[402950393,1769013040508,-500.0,0.00017173,2]
[402950394,1769013040517,-502.83012904,0.00017173,2]
[402950395,1769013040526,-500.0,0.00017173,2]
[402950396,1769013040537,-500.0,0.00017173,2]
[402950397,1769013040549,-500.0,0.00017173,2]
[402950398,1769013040558,-500.0,0.00017173,2]
[402950399,1769013040569,-500.0,0.00017173,2]
[402950400,1769013040578,-217.33264691,0.00017173,2]
[402950401,1769013040590,-488.97132533,0.00017173,2]
[402950402,1769013040599,-500.0,0.00017173,2]
[402950403,1769013040610,-500.0,0.00017173,2]
[402950404,1769013040620,-500.0,0.00017173,2]
[402950405,1769013040630,-500.63296553,0.00017173,2]
[402950406,1769013040639,-457.782643,0.00017173,2]
[402950407,1769013040649,-238.3469004,0.00017173,2]
[402950408,1769013040658,-500.0,0.00017173,2]
[402950409,1769013040667,-500.0,0.00017173,2]
[402950410,1769013040676,-500.0,0.00017173,2]
[402950411,1769013040686,-500.0,0.00017173,2]
[402950412,1769013040695,-500.37191233,0.00017173,2]
[402950413,1769013040704,-500.0,0.00017173,2]
[402950414,1769013040714,-500.0,0.00017173,2]
[402950415,1769013040723,-500.0,0.00017173,2]
[402950416,1769013040732,-500.0,0.00017173,2]
[402950417,1769013040741,-169.41492416,0.00017173,2]
[402950418,1769013040750,-500.0,0.00017173,2]
[402950419,1769013040759,-500.53278225,0.00017173,2]
[402950420,1769013040768,-166.57282596,0.00017173,2]
[402950421,1769013040777,-502.57997666,0.00017173,2]
[402950422,1769013040786,-162.82594348,0.00017173,2]
[402950423,1769013040796,-527.33,0.00017173,2]
[402950424,1769013040805,-181.0,0.00017191,2]
[402950425,1769013040814,-1215.07,0.00017211,2]
[402950426,1769013040824,-150.67,0.00017214,2]
[402950427,1769013040833,-181.0,0.00017241,2]
[402950428,1769013040842,-1215.07,0.00017254,2]
[402950429,1769013040852,-181.0,0.00017257,2]
[402950430,1769013040861,-397.76964095,0.00017265,2]
[402950431,1769013040870,-150.0,0.00017273,2]
[402950432,1769013040879,-242.00387817,0.00017273,2]
[402950433,1769013040888,-500.99033758,0.00017273,2]
[402950434,1769013040897,-586.66357325,0.00017273,2]
[402950435,1769013040907,-500.0,0.00017273,2]
[402950436,1769013040916,-500.0,0.00017273,2]
[402950437,1769013040926,-500.0,0.00017273,2]
[402950438,1769013040935,-500.0,0.00017273,2]
[402950439,1769013040944,-181.0,0.00017276,2]
[402950440,1769013040953,-181.0,0.00017281,2]
[402950441,1769013040962,-181.0,0.00017292,2]
[402950442,1769013040971,-1215.07,0.00017298,2]
[402950443,1769013040980,-181.0,0.00017336,2]
[402950444,1769013040989,-1215.07,0.00017341,2]
[402950445,1769013040998,-158.86220082,0.000174,2]
[402950446,1769013041007,-527.33,0.00017447,2]
[402950447,1769013041016,-397.76964095,0.00017477,2]
[402950448,1769013041026,-1068.86,0.00017478,2]
[402950449,1769013041035,-23805.47380936,0.000175,2]
[402950450,1769013041044,-1778.26926384,0.000175,3]
[402950451,1769013041054,-195.0,0.00017612,2]
[402950452,1769013041063,-600.0,0.00017612,2]
[402950453,1769013041073,-322.6107,0.00017637,2]
[402950454,1769013041082,-373.07297732,0.00017637,2]
[402950455,1769013041091,-250.0,0.00017637,2]
[402950456,1769013041100,-174.61919141,0.00017637,2]
[402950457,1769013041110,-250.0,0.00017637,2]
[402950458,1769013041120,-2000.0,0.00017637,2]
[402950459,1769013041129,-250.0,0.00017637,2]
[402950460,1769013041138,-250.0,0.00017637,2]
[402950461,1769013041148,-250.0,0.00017637,2]
[402950462,1769013041157,-533.88981491,0.00017637,2]
[402950463,1769013041167,-250.0,0.00017637,2]
[402950464,1769013041176,-250.0,0.00017637,2]
[402950465,1769013041186,-250.0,0.00017637,2]
[402950466,1769013041195,-250.0,0.00017637,2]
[402950467,1769013041205,-250.0,0.00017637,2]
[402950468,1769013041215,-578.20924308,0.00017637,2]
[402950469,1769013041224,-250.0,0.00017637,2]
[402950470,1769013041234,-250.0,0.00017637,2]
[402950471,1769013041243,-2000.0,0.00017637,2]
[402950472,1769013041252,-250.0,0.00017637,2]
[402950473,1769013041263,-2000.0,0.00017637,2]
[402950474,1769013041272,-500.0,0.00017637,2]
[402950475,1769013041282,-2000.0,0.00017637,2]
[402950476,1769013041291,-500.0,0.00017637,2]
[402950477,1769013041301,-2000.0,0.00017637,2]
[402950478,1769013041311,-1518.84634261,0.00017637,2]
[402950479,1769013041320,-500.0,0.00017637,2]
[402950480,1769013041330,-2000.0,0.00017637,2]
[402950481,1769013041339,-500.0,0.00017637,2]
[402950482,1769013041349,-2000.0,0.00017637,2]
[402950483,1769013041359,-500.0,0.00017637,2]
[402950484,1769013041368,-2000.0,0.00017637,2]
[402950485,1769013041378,-500.0,0.00017637,2]
[402950486,1769013041388,-2000.0,0.00017637,2]
[402950487,1769013041397,-500.0,0.00017637,2]
[402950488,1769013041406,-2000.0,0.00017637,2]
[402950489,1769013041415,-500.0,0.00017637,2]
[402950490,1769013041426,-2000.0,0.00017637,2]
[402950491,1769013041435,-500.0,0.00017637,2]
[402950492,1769013041445,-211.227528,0.00017637,2]
[402950493,1769013041454,-500.0,0.00017637,2]
[402950494,1769013041463,-250.0,0.00017637,2]
[402950495,1769013041472,-500.0,0.00017637,2]
[402950496,1769013041481,-280.85509855,0.00017637,2]
[402950497,1769013041490,-250.0,0.00017637,2]
[402950498,1769013041500,-250.0,0.00017637,2]
[402950499,1769013041509,-250.0,0.00017637,2]
[402950500,1769013041518,-500.0,0.00017637,2]
[402950501,1769013041527,-250.0,0.00017637,2]
[402950502,1769013041539,-500.0,0.00017637,2]
[402950503,1769013041549,-250.0,0.00017637,2]
[402950504,1769013041558,-250.0,0.00017637,2]
[402950505,1769013041567,-500.0,0.00017637,2]
[402950506,1769013041578,-250.0,0.00017637,2]
[402950507,1769013041587,-250.0,0.00017637,2]
[402950508,1769013041596,-500.0,0.00017637,2]
[402950509,1769013041606,-250.0,0.00017637,2]
[402950510,1769013041616,-250.0,0.00017637,2]
[402950511,1769013041625,-500.0,0.00017637,2]
[402950512,1769013041635,-250.0,0.00017637,2]
[402950513,1769013041644,-250.0,0.00017637,2]
[402950514,1769013041653,-250.0,0.00017637,2]
[402950515,1769013041663,-500.0,0.00017637,2]
[402950516,1769013041672,-250.0,0.00017637,2]
[402950517,1769013041682,-250.0,0.00017637,2]
[402950518,1769013041692,-500.0,0.00017637,2]
[402950519,1769013041701,-250.0,0.00017637,2]
[402950520,1769013041710,-500.0,0.00017637,2]
[402950521,1769013041720,-250.0,0.00017637,2]
[402950522,1769013041730,-250.0,0.00017637,2]
[402950523,1769013041739,-500.0,0.00017637,2]
[402950524,1769013041749,-250.0,0.00017637,2]
[402950525,1769013041758,-250.0,0.00017637,2]
[402950526,1769013041769,-500.0,0.00017637,2]
[402950527,1769013041779,-250.0,0.00017637,2]
[402950528,1769013041788,-250.0,0.00017637,2]
[402950529,1769013041798,-500.0,0.00017637,2]
[402950530,1769013041807,-250.0,0.00017637,2]
[402950531,1769013041817,-500.0,0.00017637,2]
[402950532,1769013041827,-250.0,0.00017637,2]
[402950533,1769013041837,-250.0,0.00017637,2]
[402950534,1769013041846,-2000.0,0.00017637,2]
[402950535,1769013041855,-500.0,0.00017637,2]
[402950536,1769013041864,-2000.0,0.00017637,2]
[402950537,1769013041873,-2000.0,0.00017637,2]
[402950538,1769013041883,-2000.0,0.00017637,2]
[402950539,1769013041892,-2000.0,0.00017637,2]
[402950540,1769013041901,-2000.0,0.00017637,2]
[402950541,1769013041910,-2000.0,0.00017637,2]
[402950542,1769013041920,-2000.0,0.00017637,2]
[402950543,1769013041929,-151.0,0.00017637,2]
[402950544,1769013041938,-1234.77072154,0.00017637,2]
[402950545,1769013041948,-151.0,0.00017637,2]
[402950546,1769013041958,-151.0,0.00017637,2]
[402950547,1769013041967,-151.0,0.00017637,2]
[402950548,1769013041976,-151.0,0.00017637,2]
[402950549,1769013041986,-151.0,0.00017637,2]
[402950550,1769013041995,-151.0,0.00017637,2]
[402950551,1769013042004,-151.0,0.00017637,2]
[402950552,1769013042013,-151.0,0.00017637,2]
[402950553,1769013042023,-151.0,0.00017637,2]
[402950554,1769013042033,-151.0,0.00017637,2]
[402950555,1769013042042,-151.0,0.00017637,2]
[402950556,1769013042051,-151.0,0.00017637,2]
[402950557,1769013042060,-194.72792766,0.00017637,2]
[402950558,1769013042070,-1680.0,0.00017647,2]
[402950559,1769013042079,-250.0,0.00017667,2]
[402950560,1769013042089,-300.0,0.00017667,2]
[402950561,1769013042098,-193.0,0.00017667,2]
[402950562,1769013042107,-300.0,0.00017667,2]
[402950563,1769013042117,-195.0,0.00017667,2]
[402950564,1769013042127,-5000.0,0.00017667,2]
[402950565,1769013042136,-600.0,0.00017667,2]
[402950566,1769013042146,-2500.0,0.00017667,2]
[402950567,1769013042155,-300.0,0.00017667,2]
[402950568,1769013042165,-250.0,0.00017668,2]
[402950569,1769013042174,-175.11,0.00017684,2]
[402950570,1769013042183,-397.76964095,0.00017689,2]
[402950571,1769013042193,-170.21,0.00017709,2]
[402950572,1769013042203,-504.22603028,0.00017721,2]
[402950573,1769013042213,-503.17577378,0.00017721,2]
[402950574,1769013042223,-500.71245302,0.00017721,2]
[402950575,1769013042232,-1000.0,0.00017721,2]
[402950576,1769013042241,-324.68792933,0.00017721,2]
[402950577,1769013042251,-1001.03676172,0.00017721,2]
[402950578,1769013042260,-1000.0,0.00017721,2]
[402950579,1769013042270,-1000.0,0.00017721,2]
[402950580,1769013042279,-1000.0,0.00017721,2]
[402950581,1769013042288,-837.2193742,0.00017721,2]
[402950582,1769013042298,-1000.0,0.00017721,2]
[402950583,1769013042477,-1000.0,0.00017721,2]
[402950584,1769013042486,-1000.0,0.00017721,2]
[402950585,1769013042495,-527.33,0.00017721,2]
[402950586,1769013042505,-29988.4666,0.00017747,2]
[402950587,1769013042514,-1000.0,0.00017747,2]
[402950588,1769013042523,-181.0,0.00017801,2]
[402950589,1769013042532,-159.3784323,0.00017808,2]
[402950590,1769013042545,-500.0,0.00017808,2]
[402950591,1769013042554,-150.0,0.00017808,2]
[402950592,1769013042563,-153.14894232,0.00017808,2]
[402950593,1769013042572,-150.0,0.00017808,2]
[402950594,1769013042582,-500.0,0.00017808,2]
[402950595,1769013042591,-500.0,0.00017808,2]
[402950596,1769013042600,-150.0,0.00017808,2]
[402950597,1769013042610,-500.0,0.00017808,2]
[402950598,1769013042620,-151.07703537,0.00017808,2]
[402950599,1769013042628,-150.0,0.00017808,2]
[402950600,1769013042638,-250.57177377,0.00017808,2]
[402950601,1769013042647,-500.0,0.00017808,2]
[402950602,1769013042656,-500.0,0.00017808,2]
[402950603,1769013042665,-500.0,0.00017808,2]
[402950604,1769013042674,-500.0,0.00017808,2]
[402950605,1769013042683,-500.0,0.00017808,2]
[402950606,1769013042692,-689.0,0.00017808,2]
[402950607,1769013042701,-500.0,0.00017808,2]
[402950608,1769013042710,-150.0,0.00017808,2]
[402950609,1769013042719,-500.0,0.00017808,2]
[402950610,1769013042729,-152.84284681,0.00017808,2]
[402950611,1769013042738,-500.0,0.00017808,2]
[402950612,1769013042748,-500.0,0.00017808,2]
[402950613,1769013042757,-158.4322296,0.00017808,2]
[402950614,1769013042766,-500.0,0.00017808,2]
[402950615,1769013042775,-150.0,0.00017808,2]
[402950616,1769013042784,-500.0,0.00017808,2]
[402950617,1769013042793,-500.0,0.00017808,2]
[402950618,1769013042802,-500.0,0.00017808,2]
[402950619,1769013042811,-150.0,0.00017808,2]
[402950620,1769013042820,-500.0,0.00017808,2]
[402950621,1769013042829,-500.0,0.00017808,2]
[402950622,1769013042839,-500.0,0.00017808,2]
[402950623,1769013042848,-150.0,0.00017808,2]
[402950624,1769013042857,-150.0,0.00017808,2]
[402950625,1769013042866,-150.0,0.00017808,2]
[402950626,1769013042875,-500.0,0.00017808,2]
[402950627,1769013042884,-500.0,0.00017808,2]
[402950628,1769013042893,-250.0,0.00017821,2]
[402950629,1769013042902,-500.0,0.00017821,2]
[402950630,1769013042911,-500.0,0.00017821,2]
[402950631,1769013042920,-1000.0,0.00017821,2]
[402950632,1769013042930,-250.0,0.00017842,2]
[402950633,1769013042938,-1650.544,0.00017847,2]
[402950634,1769013042947,-200.971,0.00017847,2]
[402950635,1769013042956,-500.0,0.00017863,2]
[402950636,1769013042966,-200.0,0.00017863,2]
[402950637,1769013042976,-235.06380015,0.00017863,2]
[402950638,1769013042985,-500.0,0.00017863,2]
[402950640,1769013042995,-227.55062227,0.00017863,2]
[402950642,1769013043004,-500.0,0.00017863,2]
[402950644,1769013043013,-500.0,0.00017863,2]
[402950645,1769013043023,-150.0,0.00017863,2]
[402950647,1769013043032,-500.0,0.00017863,2]
[402950649,1769013043041,-500.0,0.00017863,2]
[402950651,1769013043050,-500.0,0.00017863,2]
[402950653,1769013043059,-500.0,0.00017863,2]
[402950655,1769013043068,-500.0,0.00017863,2]
[402950657,1769013043077,-689.0,0.00017863,2]
[402950659,1769013043086,-500.0,0.00017863,2]
[402950661,1769013043095,-500.0,0.00017863,2]
[402950663,1769013043104,-500.0,0.00017863,2]
[402950665,1769013043113,-500.0,0.00017863,2]
[402950666,1769013043123,-500.0,0.00017863,2]
[402950667,1769013043132,-150.0,0.00017863,2]
[402950668,1769013043141,-500.0,0.00017863,2]
[402950669,1769013043150,-500.0,0.00017863,2]
[402950670,1769013043159,-500.0,0.00017863,2]
[402950671,1769013043169,-150.0,0.00017863,2]
[402950672,1769013043178,-500.0,0.00017863,2]
[402950673,1769013043188,-500.0,0.00017863,2]
[402950674,1769013043197,-500.0,0.00017863,2]
[402950675,1769013043206,-500.0,0.00017863,2]
[402950676,1769013043215,-500.0,0.00017863,2]
[402950677,1769013043225,-500.0,0.00017899,2]
[402950678,1769013043235,-25000.0,0.000179,3]
[402950679,1769013043245,-2450.62630347,0.00017901,2]
[402950680,1769013043254,-397.76964095,0.00017901,2]
[402950681,1769013043263,-689.32407629,0.00017901,2]
[402950682,1769013043273,-15413.68104602,0.00017901,2]
[402950683,1769013043282,-181.0,0.00017906,2]
[402950684,1769013043291,-181.0,0.00017912,2]
[402950685,1769013043300,-500.0,0.00017918,2]
[402950686,1769013043310,-500.0,0.00017918,2]
[402950687,1769013043319,-500.0,0.00017918,2]
[402950688,1769013043329,-500.0,0.00017918,2]
[402950689,1769013043338,-221.17629805,0.00017918,2]
[402950690,1769013043347,-500.0,0.00017918,2]
[402950691,1769013043357,-500.0,0.00017918,2]
[402950692,1769013043366,-500.0,0.00017918,2]
[402950693,1769013043376,-500.0,0.00017918,2]
[402950694,1769013043385,-500.0,0.00017918,2]
[402950695,1769013043394,-689.0,0.00017918,2]
[402950696,1769013043403,-500.0,0.00017918,2]
[402950697,1769013043412,-500.0,0.00017918,2]
[402950698,1769013043421,-191.31290121,0.00017918,2]
[402950699,1769013043430,-500.0,0.00017918,2]
[402950700,1769013043440,-500.0,0.00017918,2]
[402950701,1769013043449,-150.0,0.00017918,2]
[402950702,1769013043458,-500.0,0.00017918,2]
[402950703,1769013043468,-500.0,0.00017918,2]
[402950704,1769013043477,-500.0,0.00017918,2]
[402950705,1769013043486,-200.0,0.00017918,2]
[402950706,1769013043496,-500.0,0.00017918,2]
[402950707,1769013043505,-500.0,0.00017918,2]
[402950708,1769013043514,-500.0,0.00017918,2]
[402950709,1769013043523,-500.0,0.00017918,2]
[402950710,1769013043534,-500.0,0.00017918,2]
[402950711,1769013043544,-1291.86,0.00017923,2]
[402950712,1769013043554,-500.0,0.00017972,2]
[402950713,1769013043563,-500.0,0.00017972,2]
[402950714,1769013043571,-500.0,0.00017972,2]
[402950715,1769013043583,-500.0,0.00017972,2]
[402950716,1769013043591,-500.0,0.00017972,2]
[402950717,1769013043600,-500.0,0.00017972,2]
[402950718,1769013043609,-500.0,0.00017972,2]
[402950719,1769013043620,-500.0,0.00017972,2]
[402950720,1769013043629,-689.0,0.00017972,2]
[402950721,1769013043639,-500.0,0.00017972,2]
[402950722,1769013043647,-505.87876924,0.00017972,2]
[402950723,1769013043656,-500.0,0.00017972,2]
[402950724,1769013043666,-500.0,0.00017972,2]
[402950725,1769013043675,-150.0,0.00017972,2]
[402950726,1769013043684,-500.0,0.00017972,2]
[402950727,1769013043693,-500.0,0.00017972,2]
[402950728,1769013043703,-500.0,0.00017972,2]
[402950729,1769013043712,-500.0,0.00017972,2]
[402950730,1769013043721,-500.0,0.00017972,2]
[402950731,1769013043730,-500.0,0.00017972,2]
[402950732,1769013043740,-500.0,0.00017972,2]
[402950733,1769013043750,-500.0,0.00017972,2]
[402950734,1769013043759,-15055.0,0.00017973,2]
[402950735,1769013043768,-30935.0,0.00017973,2]
[402950736,1769013043777,-150.0,0.00017973,2]
[402950737,1769013043786,-500.0,0.00017979,2]
[402950738,1769013043795,-453.06195824,0.00017979,2]
[402950739,1769013043806,-366.21904964,0.00017979,2]
[402950740,1769013043816,-500.0,0.00017979,2]
[402950741,1769013043831,-500.0,0.00017979,2]
[402950743,1769013043852,-174.04894204,0.00017979,2]
[402950744,1769013043864,-268.20617155,0.00017979,2]
[402950745,1769013043873,-500.0,0.00017979,2]
[402950746,1769013043884,-203.88282731,0.00017979,2]
[402950747,1769013043894,-500.0,0.00017979,2]
[402950748,1769013043904,-500.0,0.00017979,2]
[402950749,1769013043915,-500.0,0.00017979,2]
[402950750,1769013043925,-500.0,0.00017979,2]
[402950751,1769013043936,-350.39763176,0.00017979,2]
[402950752,1769013043947,-801.83018575,0.0001799,2]